Cogmind - Beta 15 @@@ ROGUE MODE // 2025.06.17 @ 19:32:09 Player: Ilbko Result: Destroyed by D-53 Grenadier with Mini Grenade Launcher Performance ------------- Evolutions (0) 0 Regions Visited (4) 800 Robots Destroyed (17) 85 Value Destroyed (144) 144 Prototype IDs (23) 460 Alien Tech Used (0) 0 Bonus (314) 314 TOTAL SCORE: 1803 Bonus ------- Follower Combat Kills 14 Aligned with FarCom 300 Cogmind --------- Core Integrity 0/250 Matter 285/300 Energy 100/100 System Corruption 0% Temperature Cool (0) Movement Core (200) Ox3 Location -9/Mines Parts ------- > --- POWER (1) -------- (None) > --- PROPULSION (2) --- (None) > --- UTILITY (2) ------ Medium Storage Unit > --- WEAPON (2) ------- Hammer > --- INVENTORY (10) --- Compact Wheel Flight Unit Flight Unit Flight Unit Lightpack 2.0 ECM Suite Peak State ------------ > --- POWER ------------ Ion Engine > --- PROPULSION ------- Light Treads Light Treads > --- UTILITY ---------- Small Storage Unit Sensor Array > --- WEAPON ----------- Grenade Launcher Hammer > --- INVENTORY -------- Compact Wheel Flight Unit Flight Unit Flight Unit Lightpack 2.0 ECM Suite [Rating: 10] Favorites ----------- Power Ion Engine Engine Ion Engine Propulsion Light Treads Treads Light Treads Utility Small Storage Unit Device Sensor Array Storage Small Storage Unit Weapon Grenade Launcher Energy Gun EM Pulse Gun Launcher Grenade Launcher Impact Weapon Hammer Build | -11 -10 -10 -10 -9 ------- Run | Yrd Mat Min Exi Min Slots Evolved . | . . . . . Power . | . . . . . Propulsion . | . . . . . Utility . | . . . . . Weapon . | . . . . . Parts Attached 16 | 7 5 2 2 . Power 2 | 2 . . . . Engine 2 | 2 . . . . Core . | . . . . . Reactor . | . . . . . Propulsion 2 | 2 . . . . Treads 2 | 2 . . . . Leg . | . . . . . Wheel . | . . . . . Hover . | . . . . . Flight . | . . . . . Utility 6 | 1 2 1 2 . Device 3 | . 2 1 . . Storage 3 | 1 . . 2 . Processor . | . . . . . Hackware . | . . . . . Protection . | . . . . . Artifact . | . . . . . Weapon 6 | 2 3 1 . . Energy Gun 2 | 2 . . . . Energy Cannon . | . . . . . Ballistic Gun . | . . . . . Ballistic Cannon . | . . . . . Launcher 2 | . 1 1 . . Special Weapon . | . . . . . Impact Weapon 2 | . 2 . . . Slashing Weapon . | . . . . . Piercing Weapon . | . . . . . Special Melee Weapon . | . . . . . Unidentified Prototypes . | . . . . . Parts Lost 5 | . . . . 5 Power 1 | . . . . 1 Propulsion 2 | . . . . 2 Utility 1 | . . . . 1 Weapon 1 | . . . . 1 Highest Loss Streak 5 | . . . . 5 To Critical Strikes . | . . . . . Average Backups 6 | 2 5 7 6 6 Power . | . 1 . . . Propulsion 3 | 1 2 4 4 4 Utility 1 | . . 1 1 2 Weapon 1 | . 1 1 . . Tool/Special . | . . . . . Unused Backups 10 | . 2 . 3 5 Power 1 | . . . 1 . Propulsion 6 | . 1 . 1 4 Utility 1 | . . . . 1 Weapon 1 | . . . 1 . Tool/Special 1 | . 1 . . . Average Slot Usage (%) 99 | . 97 100 99 94 Engine 13 | . 14 14 14 11 Treads 27 | . 28 28 28 25 Device 13 | . 11 14 13 14 Storage 14 | . 14 14 14 14 Energy Gun 2 | . 7 . . . Launcher 13 | . 10 14 14 14 Impact Weapon 12 | . 9 14 14 14 Peak Build Rating 10 | 6 7 8 10 10 Average Rating 7 | 4 6 7 8 9 On Entrance 6 | . 6 7 8 10 Naked Turns . | . . . . . Heaviest Build 210 | 14 17 17 210 21 Greatest Support 40 | 40 40 40 40 40 Greatest Overweight (x) 5 | . . . 5 1 Average Overweight (x) . | . . . . . Largest Inventory Capacity 35 | 8 8 8 35 10 Average Capacity 8 | 7 8 8 8 10 Most Carried 8 | 3 8 8 8 8 Average Carried 7 | 2 5 7 7 8 Final Capacity 10 | 8 8 8 10 10 Final Carried 8 | 3 8 8 8 8 Class Distribution -------------------- 97% | Mutant Dominant Class ---------------- Mutant | -10/Materials Mutant | -10/Mines Mutant | -10/Exiles Assassin | -9/Mines Resources | -11 -10 -10 -10 -9 ----------- Run | Yrd Mat Min Exi Min Matter Collected 449 | 208 77 164 . . Remotely . | . . . . . Salvage Created 212 | . 103 109 . . Parts 22 | . 15 7 . . Haulers Intercepted . | . . . . . Recyclers Shooed 2 | . 1 1 . . Parts Field Recycled . | . . . . . Retrieved Matter . | . . . . . Parts Self-Destructed . | . . . . . Prevented . | . . . . . Kills | -11 -10 -10 -10 -9 ------- Run | Yrd Mat Min Exi Min Combat Hostiles Destroyed 10 | . 6 4 . . Melee 1 | . . 1 . . AOE 7 | . 6 1 . . Classes Destroyed 5 | . 4 1 . . Worker 2 | . 1 1 . . Builder 1 | . . 1 . . Tunneler 3 | . 1 2 . . Recycler 1 | . 1 . . . Swarmer 10 | . 6 4 . . Best Kill Streak 4 | . 4 4 . . Combat Bots Only 3 | . 3 3 . . Max Kills in Single Turn 3 | . 3 1 . . Gunslinging . | . . . . . Exploded 2 | . 2 1 . . Melee 1 | . . 1 . . Uniques/NPCs Destroyed . | . . . . . Combat | -11 -10 -10 -10 -9 -------- Run | Yrd Mat Min Exi Min Hostile Shots Fired 49 | . 9 26 . 14 Missed 8 | . 3 3 . 2 Hits 41 | . 6 23 . 12 Projectile 41 | . 6 23 . 12 AOE 14 | . . . . 14 Damage Taken 942 | . 90 257 . 595 Core 252 | . 21 51 . 180 Absorbed by Shields . | . . . . . Core Remaining (%) 100 | 100 . . . . Volleys Fired 9 | . 7 2 . . Largest 1 | . 1 1 . . Hottest 33 | . 30 33 . . Shots Fired 9 | . 7 2 . . Gun . | . . . . . Cannon . | . . . . . Launcher 9 | . 7 2 . . Special . | . . . . . Kinetic . | . . . . . Thermal . | . . . . . Explosive 9 | . 7 2 . . Electromagnetic . | . . . . . Robot Hit Streak 2 | . 2 1 . . Robot Miss Streak 2 | . 1 2 . . Penetration Max . | . . . . . Secondary Targets . | . . . . . Shots Hit Robots 17 | . 7 10 . . Core Hits 12 | . 9 3 . . Critical Kills . | . . . . . Critical Parts Destroyed 2 | . . 2 . . Critical Strikes 2 | . . 2 . . Smash 2 | . . 2 . . Melee Attacks 19 | . 4 15 . . Impact 19 | . 4 15 . . Slashing . | . . . . . Piercing . | . . . . . Sneak Attacks 7 | . 3 4 . . Combat Hostiles . | . . . . . Follow-up Attacks . | . . . . . Damage Inflicted 1087 | . 611 476 . . Guns . | . . . . . Cannons . | . . . . . Explosions 554 | . 402 152 . . Melee 533 | . 209 324 . . Ramming . | . . . . . Kinetic . | . . . . . Thermal . | . . . . . Explosive 554 | . 402 152 . . Electromagnetic . | . . . . . Impact 533 | . 209 324 . . Slashing . | . . . . . Piercing . | . . . . . Highest Corruption . | . . . . . Average Corruption . | . . . . . Corruption Purged . | . . . . . Corruption Blocked . | . . . . . Overload Shots . | . . . . . Overflow Damage 106 | . 5 101 . . Projectiles . | . . . . . Explosions 5 | . 5 . . . Melee 101 | . . 101 . . Knockbacks 2 | . . 2 . . Impact 2 | . . 2 . . Kinetic . | . . . . . Secondary . | . . . . . Self-Inflicted Damage 134 | . 46 88 . . Shots 4 | . 2 2 . . Rammed . | . . . . . Targets Rammed . | . . . . . Kicked . | . . . . . Crushed . | . . . . . Highest Temperature . | . . . . . Average Temperature . | . . . . . Received Heat Transfer . | . . . . . Siege Activations . | . . . . . Martial Activations . | . . . . . Shielding Activations . | . . . . . Robots Disrupted . | . . . . . Combat Hostiles . | . . . . . Robots Corrupted 4 | . . 4 . . Combat Hostiles 2 | . . 2 . . Parts Fried 6 | . . 6 . . Impact Corruptions 7 | . . 7 . . Robots Melted . | . . . . . Combat Hostiles . | . . . . . Parts Melted . | . . . . . Heat Transferred . | . . . . . Parts Sabotaged . | . . . . . Parts Stolen . | . . . . . Parts Stripped . | . . . . . Power Chain Reactions . | . . . . . Alert | -11 -10 -10 -10 -9 ------- Run | Yrd Mat Min Exi Min Maximum Alert Level . | . . . . . Low Security (%) 100 | 100 100 100 . 100 Level 1 . | . . . . . Level 2 . | . . . . . Level 3 . | . . . . . Level 4 . | . . . . . Level 5 . | . . . . . High Security . | . . . . . Max Security . | . . . . . Peak Influence 130 | . 130 77 . . Initial . | . . . . . Average 23 | . 36 15 . . Influence Increases 423 | . 241 182 . . Destroy 0b10 Robot/C 240 | . 120 120 . . Destroy 0b10 Robot/NC 35 | . 15 20 . . Destroy Leader 40 | . 20 20 . . Allied During Kill 3 | . . 3 . . Successful Hack 1 | . 1 . . . Disable Machine 15 | . 15 . . . Destroy Structure 74 | . 55 19 . . Lose Combat Pursuer 15 | . 15 . . . Influence Decreases 423 | . 241 182 . . Time Decay 403 | . 241 162 . . Lost Ally 20 | . . 20 . . Squads Dispatched 1 | . 1 . . . Investigation . | . . . . . Extermination . | . . . . . Reinforcement 1 | . 1 . . . Assault . | . . . . . Garrison . | . . . . . Intercept . | . . . . . Searches Triggered . | . . . . . Construction Impeded . | . . . . . Haulers Reinforced . | . . . . . Active Scanning Responses . | . . . . . Cargo Convoy Interrupts . | . . . . . Stealth | -11 -10 -10 -10 -9 --------- Run | Yrd Mat Min Exi Min Distress Signals . | . . . . . Communications Jammed . | . . . . . Distress Signals . | . . . . . Times Spotted 18 | . 8 6 . 4 Peak Tracking Total 4 | . 3 3 . 4 Tactical Retreats 1 | . 1 . . . Traps | -11 -10 -10 -10 -9 ------- Run | Yrd Mat Min Exi Min Traps Triggered . | . . . . . Indirectly . | . . . . . Trap Hack Attempts . | . . . . . Triggered . | . . . . . Disarmed . | . . . . . Reprogrammed . | . . . . . Reused . | . . . . . Traps Extracted . | . . . . . Installed . | . . . . . Triggered . | . . . . . Machines | -11 -10 -10 -10 -9 ---------- Run | Yrd Mat Min Exi Min Machines Disabled 1 | . 1 . . . Max in Single Turn 1 | . 1 . . . Machines Repaired . | . . . . . Machines Dismantled . | . . . . . Machines Sabotaged . | . . . . . Overloaded Fab Kills . | . . . . . Hacking | -11 -10 -10 -10 -9 --------- Run | Yrd Mat Min Exi Min Machines Accessed 5 | . 4 . 1 . Terminals 2 | . 2 . . . Fabricators . | . . . . . Repair Stations . | . . . . . Recycling Units 2 | . 2 . . . Scanalyzers . | . . . . . Garrison Access . | . . . . . Total Hacks 10 | . 9 . 1 . Successful 7 | . 6 . 1 . Failed 3 | . 3 . . . Catastrophic 3 | . 3 . . . Database Lockouts . | . . . . . Manual 3 | . 2 . 1 . Terminals 4 | . 4 . . . Fabricators . | . . . . . Repair Stations . | . . . . . Recycling Units 5 | . 5 . . . Scanalyzers . | . . . . . Garrison Access . | . . . . . Terminal Hacks 2 | . 1 . 1 . Locate Traps 1 | . 1 . . . Proto ID Catalog 1 | . . . 1 . Fabricator Hacks . | . . . . . Repair Station Hacks . | . . . . . Recycling Unit Hacks 5 | . 5 . . . Recycle Component 1 | . 1 . . . Process 1 | . 1 . . . Report Inventory 2 | . 2 . . . Retrieve Matter 1 | . 1 . . . Scanalyzer . | . . . . . Garrison Access Hacks . | . . . . . Unauthorized Hacks . | . . . . . Terminals . | . . . . . Fabricators . | . . . . . Repair Stations . | . . . . . Recycling Units . | . . . . . Scanalyzers . | . . . . . Garrison Access . | . . . . . Data Cores Recovered . | . . . . . Used . | . . . . . Hacking Detections 3 | . 3 . . . Full Trace Events 1 | . 1 . . . Feedback Events . | . . . . . Feedback Blocked . | . . . . . Robot Schematics Acquired . | . . . . . Robots Built . | . . . . . Authchips . | . . . . . Time . | . . . . . Total Robot Build Rating . | . . . . . Part Schematics Acquired . | . . . . . Parts Built . | . . . . . Authchips . | . . . . . Time . | . . . . . Total Part Build Rating . | . . . . . Parts Repaired . | . . . . . Time . | . . . . . Parts Recycled 1 | . 1 . . . Recycled Matter 22 | . 22 . . . Retrieved Matter 22 | . 22 . . . Retrieved Components . | . . . . . Parts Scanalyzed . | . . . . . Part Schematics Acquired . | . . . . . Parts Damaged . | . . . . . Bothacking | -11 -10 -10 -10 -9 ------------ Run | Yrd Mat Min Exi Min Used RIF Installer . | . . . . . Robots Hacked . | . . . . . Non-combat . | . . . . . Combat . | . . . . . Robot Hacks Applied . | . . . . . Relay Couplers Released . | . . . . . Fabnet Peak Effective % . | . . . . . Robots Rewired . | . . . . . Allies Hacked . | . . . . . Hacks Repelled . | . . . . . Allies | -11 -10 -10 -10 -9 -------- Run | Yrd Mat Min Exi Min Total Allies 3 | . . 3 . . Largest Group 3 | . . 3 . . Highest-Rated Group 40 | . . 40 . . Highest-Rated Ally 16 | . . 16 . . Total Orders . | . . . . . Ally Attacks 11 | . . 11 . . Total Damage 152 | . . 152 . . Kills 2 | . . 2 . . Allies Corrupted . | . . . . . Allies Melted . | . . . . . Intel | -11 -10 -10 -10 -9 ------- Run | Yrd Mat Min Exi Min Active Infowar (turns) 2306 | . 651 716 894 45 Sensors 2221 | . 568 714 894 45 Seismic 2 | . . 2 . . ECM 83 | . 83 . . . Robot Analysis Total . | . . . . . Derelict Logs Recovered 1 | . . 1 . . Drone Launches . | . . . . . Drone Recoveries . | . . . . . Exploration | -11 -10 -10 -10 -9 ------------- Run | Yrd Mat Min Exi Min Turns Passed 2536 | 109 754 716 912 45 Spaces Moved 1506 | 68 438 412 560 28 Core 13 | 13 . . . . Treads 1493 | 55 438 412 560 28 Legs . | . . . . . Wheels . | . . . . . Hover . | . . . . . Flight . | . . . . . Fastest Speed 50 | 50 160 160 160 160 Average Speed 159 | 138 160 160 160 162 Slowest Speed 560 | 160 160 160 560 240 Overloaded Moves . | . . . . . Propulsion Burnouts . | . . . . . Robots Hopped . | . . . . . Potential Cave-ins . | . . . . . Cave-ins Triggered . | . . . . . Exploration Rate (%) 48 | 4 48 80 91 18 Regions Visited 4 Branch Regions 3 Pre-discovered Areas 2 | . . 2 . . Known Exits Taken . | . . . . . Unknown Exits Taken 4 | 1 1 1 1 . Scrap Searched 2 | . . 2 . . Spaces Dug . | . . . . . Terrain Destroyed 76 | . 53 23 . . Melee . | . . . . . Projectile . | . . . . . AOE 76 | . 53 23 . . Terrain Rammed . | . . . . . Walls Destroyed . | . . . . . Machines Disabled . | . . . . . Actions | -11 -10 -10 -10 -9 --------- Run | Yrd Mat Min Exi Min Total 1604 | 81 479 441 575 28 Wait 8 | 1 5 2 . . Move 1502 | 67 437 411 559 28 Hop . | . . . . . Pick Up 26 | 6 12 3 5 . Fast Attach 5 | 3 . . 2 . Attach 6 | 3 2 . 1 . Detach 1 | . 1 . . . Swap 11 | 1 5 4 1 . Drop 17 | . 6 4 7 . Fire 9 | . 7 2 . . Melee 19 | . 4 15 . . Ram . | . . . . . Kick . | . . . . . Crush . | . . . . . Escape Stasis . | . . . . . Rewire . | . . . . . Trap . | . . . . . Miscellaneous . | . . . . . Route ------- -11/Scrapyard -10/Materials (discovered 2 exits: [*Mat] / [*Min]) -10/Mines (discovered 2 exits: [*Mat] / *Exi) -10/Exiles (discovered 2 exits: [*Min x2]) -9/Mines (discovered 1 exit: [*Mat]) History --------- Turn | Location | Event 6 | -11/Scrapyard | Discovered new exit (range 14) 110 | -11/Scrapyard | Entered Materials 245 | -10/Materials | Discovered new exit (range 6) 317 | -10/Materials | Build established: Mutant 407 | -10/Materials | Discovered new exit (range 15) 864 | -10/Materials | Entered Mines 865 | -10/Mines | Learned location of Storage (-7) 876 | -10/Mines | Met a Derelict bent on vengeance 1102 | -10/Mines | Received a Rocket Launcher from a helpful Derelict 1223 | -10/Mines | Learned location of Zion (-7) 1281 | -10/Mines | Discovered new exit (range 15) 1299 | -10/Mines | Assisted by bots powering up and referring to "LRC-V3" 1396 | -10/Mines | Lost 3 allies 1572 | -10/Mines | Deemed a non-threat by the Exiles lab entrance 1573 | -10/Mines | Discovered new exit (range 5) 1580 | -10/Mines | Entered Exiles 1611 | -10/Exiles | Discovered new exit (range 14) 1632 | -10/Exiles | Met 8R-AWN 1664 | -10/Exiles | Met EX-HEX 1805 | -10/Exiles | Met EX-DEC 1975 | -10/Exiles | Met EX-BIN 1997 | -10/Exiles | Aligned with FarCom system 1999 | -10/Exiles | Given EX-Vault access code 2037 | -10/Exiles | Opened EX-Vault 2053 | -10/Exiles | Found Lightpack 2.0 2089 | -10/Exiles | Warned to stay clear of 0b10 Research branches 2197 | -10/Exiles | Visited The Gauntlet 2467 | -10/Exiles | Discovered new exit (range 14) 2492 | -10/Exiles | Left Exiles lab with Lightpack 2.0 2492 | -10/Exiles | Entered Mines 2493 | -9/Mines | Assembled infested the area 2527 | -9/Mines | Discovered new exit (range 8) 2528 | -9/Mines | Core integrity fell below 50% 2536 | -9/Mines | Core integrity fell below 20% 2537 | -9/Mines | Destroyed by D-53 Grenadier with Mini Grenade Launcher Last Messages --------------- 02507_ G-34 Mercenary destroyed. 02508_ K-01 Serf collects debris. 02518_ The unstable cave ceiling collapses. 02518_ as-01446 destroyed. 02518_ K-01 Serf collects debris. 02525_ The unstable cave ceiling collapses. 02525_ 20 Matter crushed. 02527_ Lgt. Treads destroyed. 02527_ EXIT=FOUND 02529_ K-01 Serf collects debris. 02529_ Ion Engine destroyed. 02530_ The unstable cave ceiling collapses. 02531_ Grenade Launcher destroyed. 02532_ The unstable cave ceiling collapses. 02534_ U-05 Engineer lays Concrete. 02534_ K-01 Serf collects debris. 02536_ U-05 Engineer lays Concrete. 02537_ The unstable cave ceiling collapses. 02537_ Lgt. Treads destroyed. 02537_ Sensor Array destroyed. Map ----- +----------------------------------------------------+ | ???????????????????????????????????????? | | ???????????????????????????????????????? | | ???????????????????????????????????????? | | ???????????????????????????????????????? | | ???????????????????????????????????????? | | ???????????????????????????????????????? | | ???????????????????????????????????????? | | ???????????????????????????????????????? | | ???????????????????????????????????????? | | ???????????????????????????????????????? | | ???????????????????????????????????????? | | ???????????????????????????????????????? | | ??????????####?????????????????????????? | | ?????????## ????????????????????????? | | ?????????# ????????????????????????? | | ?????????# ????????????????????????? | | ????????## ????????????????????????? | | ????????# ????????????????????????? | | ????????# ?????????????????????????? | | ????????# ?????????????????????????? | | ?????????# ?????????????????????????? | | ??????????# ###???????????????????????? | | ?????????## # ######??????????????????? | | ???????### ##?????????????????? | | ?????### #?????????????????? | | ?????# @< #?????????????????? | | ?????# ##?????????????????? | | ????# ##??????????????????? | | ????# #???????????????????? | | ????## #######??????????????? | | ????# # # " ###????????????? | | ????## ?" ????????????? | | ?????## b ? = ???????????? | | ?????# %| ???????????? | | ?????# k d %%[ #??????????????? | | ?????### d ##??????????????? | | ??????## #???????????????? | | ??????## u##???????????????? | | ?????## ## u##????????????????? | | ????## ###?#*k$ ???????????????? | | ????# ##????# #??????????????? | | ????# #??????%! # ?????????????? | | ????## #??????? ??????????????? | | ?????## #???????? ??????????????? | | ??????# #????????? ??????????????? | | ??????# #?????????? ???????????????? | | ??????## #???????????????????????????? | | ???????## #######?????????????????????? | | ????????# #?????????????????????? | | ?????#### ##### #?????????????????????? | +----------------------------------------------------+ Best States ------------- Heat Dissipation 25 Energy Generation 10 Energy Capacity 250 Matter Stores 300 Matter Capacity 300 Sight Range 16 Robot Scan Range 14 Terrain Scan Density 10 ECM Strength 1 Evasion (%) 50 Recoil Reduction 2 Item Schematics ----------------- None Robot Schematics ------------------ None Fabricated ------------ Nothing Repaired ---------- Nothing Alien Tech Used ----------------- None Achievements -------------- Tank Challenges ------------ None Game ------ Seed LobotomySpikedDesublimator Manual? 0 Play Time 00:21:55 Cumulative 7.0 hours Start 2025.06.17 @ 19:09:52 End 2025.06.17 @ 19:32:09 Sessions 1 Manual Loads 0 Difficulty Rogue Special Mode None Game No. 9 Rogue 6 Adventurer 3 Explorer 0 Win Type - Total 0 Types 0/0/0/0/0/0/0/0/0/0 Lore% 10 Gallery% 13 Achievement% 16 Wizard Run 0 Options --------- Layout 1 ASCII 0 Keyboard 0 Movement Mouse Keybinds 0 Fullscreen 1 Font 24/Smallcaps Map View 50x35 Zoom Use 0% Tactical HUD 1 Map Filters NONE Filters NONE Steam 1 RUN: d1367e77-0cf8-4f06-8238-a0766682092d